[Event "Superettan 2017/2018"]
[Site "Vegagatan 20, Gothenburg, Sweden"]
[Date "2018.02.03"]
[Round "2.10"]
[White "Kumar, Rahul"]
[Black "Svensson, Bengt"]
[Result "1/2-1/2"]
[TimeControl "90 minutes for 40 moves + 30 minutes for the rest of the game + 30 seconds per move from move one."]
[BlackTitle "IM"]
[WhiteFideId "5010969"]
[BlackFideId "1700200"]
[WhiteElo "2183"]
[BlackElo "2319"]

1. d4 {[%clk 01:30:55]} {[%emt 00:00:03]} Nf6 {[%clk 01:30:26]} {[%emt
00:00:35]} 2. Bf4 {[%clk 01:31:05]} {[%emt 00:00:19]} d5 {[%clk 01:30:03]}
{[%emt 00:00:55]} 3. e3 {[%clk 01:30:26]} {[%emt 00:01:07]} c5 {[%clk
01:28:46]} {[%emt 00:16:18]} 4. c3 {[%clk 01:29:54]} Nc6 {[%clk 01:27:42]} 5.
Bd3 {[%clk 01:28:10]} e6 {[%clk 01:24:36]} 6. Nf3 {[%clk 01:24:53]} Bd6 {[%clk
01:23:26]} 7. Bg3 {[%clk 01:25:12]} O-O {[%clk 01:22:08]} {[%emt 00:01:21]} 8.
Nbd2 {[%clk 01:22:45]} {[%emt 00:02:57]} b6 {[%clk 01:17:14]} {[%emt 00:05:26]}
9. Ne5 {[%clk 01:22:01]} {[%emt 00:01:13]} Bb7 {[%clk 01:16:24]} {[%emt
00:01:20]} 10. O-O {[%clk 01:18:37]} {[%emt 00:03:53]} Qc7 {[%clk 01:11:12]}
{[%emt 00:18:51]} 11. f4 {[%clk 01:17:12]} Ne7 {[%clk 01:08:14]} 12. Qb1 {[%clk
01:17:19]} g6 {[%clk 00:59:24]} {[%emt 00:01:58]} 13. Bh4 {[%clk 01:13:04]}
{[%emt 00:04:42]} Ne8 {[%clk 00:57:23]} {[%emt 00:02:34]} 14. g4 {[%clk
00:53:46]} {[%emt 00:19:46]} f6 {[%clk 00:51:00]} {[%emt 00:06:55]} 15. Nef3
{[%clk 00:52:21]} {[%emt 00:01:54]} Ng7 {[%clk 00:49:34]} {[%emt 00:01:57]} 16.
Bg3 {[%clk 00:50:28]} {[%emt 00:02:22]} f5 {[%clk 00:43:21]} {[%emt 00:06:44]}
17. h3 {[%clk 00:47:33]} {[%emt 00:03:23]} Qc8 {[%clk 00:42:12]} {[%emt
00:01:41]} 18. Rf2 {[%clk 00:44:56]} {[%emt 00:03:05]} Ba6 {[%clk 00:41:17]}
{[%emt 00:01:28]} 19. Qf1 {[%clk 00:43:35]} {[%emt 00:01:50]} Bxd3 {[%clk
00:41:30]} {[%emt 00:00:18]} 20. Qxd3 {[%clk 00:43:56]} {[%emt 00:00:08]} Kh8
{[%clk 00:38:03]} {[%emt 00:03:58]} 21. Raf1 {[%clk 00:43:07]} {[%emt
00:01:18]} Ng8 {[%clk 00:31:26]} {[%emt 00:07:09]} 22. Ne5 {[%clk 00:41:14]}
{[%emt 00:02:22]} Nf6 {[%clk 00:31:11]} {[%emt 00:00:45]} 23. Qe2 {[%clk
00:41:19]} {[%emt 00:00:24]} Qc7 {[%clk 00:28:06]} {[%emt 00:03:37]} 24. Bh4
{[%clk 00:41:19]} {[%emt 00:00:28]} Ne4 {[%clk 00:24:32]} {[%emt 00:04:05]} 25.
Rg2 {[%clk 00:37:32]} {[%emt 00:04:15]} Rab8 {[%clk 00:19:21]} {[%emt
00:05:43]} 26. Nxe4 {[%clk 00:33:03]} {[%emt 00:04:59]} fxe4 {[%clk 00:18:46]}
{[%emt 00:01:05]} 27. Qb5 {[%clk 00:32:34]} {[%emt 00:00:57]} Ra8 {[%clk
00:18:01]} {[%emt 00:01:16]} 28. Qa6 {[%clk 00:32:27]} {[%emt 00:00:36]} Rab8
{[%clk 00:17:43]} {[%emt 00:00:50]} 29. Qb5 {[%clk 00:31:12]} {[%emt 00:01:45]}
Ra8 {[%clk 00:15:50]} {[%emt 00:02:24]} 30. Qa6 {[%clk 00:31:32]} {[%emt
00:00:09]} Rab8 {[%clk 00:15:02]} {[%emt 00:01:17]} 31. Qb5 {[%clk 00:31:39]}
{[%emt 00:00:23]} Ra8 {[%emt 00:08:30]} 1/2-1/2

[Event "Superettan 2017/2018"]
[Site "Vegagatan 20, Gothenburg, Sweden"]
[Date "2018.02.03"]
[Round "2.11"]
[White "Aberg, Anton"]
[Black "Arnelind, Mikael"]
[Result "1-0"]
[TimeControl "90 minutes for 40 moves + 30 minutes for the rest of the game + 30 seconds per move from move one."]
[WhiteTitle "IM"]
[WhiteFideId "1701991"]
[BlackFideId "1704290"]
[WhiteElo "2368"]
[BlackElo "2220"]

1. d4 {[%clk 01:30:38]} {[%emt 00:00:21]} Nf6 {[%clk 01:30:54]} {[%emt
00:00:06]} 2. Bg5 {[%clk 01:31:03]} {[%emt 00:00:06]} d5 {[%clk 01:31:17]}
{[%emt 00:00:06]} 3. e3 {[%clk 01:31:06]} {[%emt 00:00:27]} e6 {[%clk
01:31:00]} {[%emt 00:00:47]} 4. Nd2 {[%clk 01:30:01]} {[%emt 00:01:36]} Nbd7
{[%clk 01:30:08]} {[%emt 00:15:50]} 5. Ngf3 {[%clk 01:29:34]} h6 {[%clk
01:27:26]} 6. Bh4 {[%clk 01:29:36]} c5 {[%clk 01:27:07]} 7. c3 {[%clk
01:28:23]} Be7 {[%clk 01:21:14]} 8. Bd3 {[%clk 01:28:23]} b6 {[%clk 01:19:55]}
{[%emt 00:01:23]} 9. O-O {[%clk 01:18:40]} {[%emt 00:10:13]} Bb7 {[%clk
01:19:18]} {[%emt 00:01:07]} 10. Ne5 {[%clk 01:15:13]} {[%emt 00:03:57]} Nxe5
11. dxe5 {[%clk 01:15:37]} Nd7 {[%clk 01:08:34]} 12. Bg3 {[%clk 01:14:16]} h5
{[%clk 01:01:34]} {[%emt 00:02:50]} 13. h3 {[%clk 01:13:55]} {[%emt 00:00:51]}
Qc7 {[%clk 00:56:44]} {[%emt 00:05:19]} 14. e4 {[%clk 01:07:48]} {[%emt
00:06:38]} Qc6 {[%clk 00:46:19]} {[%emt 00:10:55]} 15. exd5 {[%clk 01:05:04]}
{[%emt 00:03:13]} exd5 {[%clk 00:46:35]} {[%emt 00:00:14]} 16. c4 {[%clk
01:05:01]} {[%emt 00:00:34]} Qh6 {[%clk 00:30:12]} {[%emt 00:16:53]} 17. cxd5
{[%clk 01:04:35]} {[%emt 00:00:56]} Bxd5 {[%clk 00:29:50]} {[%emt 00:00:52]} 18.
Be4 {[%clk 00:58:53]} {[%emt 00:06:13]} Bxe4 {[%clk 00:28:48]} {[%emt
00:01:32]} 19. Nxe4 {[%clk 00:59:18]} {[%emt 00:00:05]} h4 {[%clk 00:28:14]}
{[%emt 00:01:05]} 20. Bh2 {[%clk 00:59:05]} {[%emt 00:00:43]} Qg6 {[%clk
00:24:54]} {[%emt 00:03:50]} 21. e6 {[%clk 00:50:31]} {[%emt 00:09:03]} fxe6
{[%clk 00:18:32]} {[%emt 00:06:52]} 22. Nd6+ {[%clk 00:46:43]} {[%emt
00:04:18]} Bxd6 {[%clk 00:18:39]} {[%emt 00:00:24]} 23. Qxd6 {[%clk 00:47:08]}
{[%emt 00:00:05]} Rd8 {[%clk 00:15:29]} {[%emt 00:03:40]} 24. Rad1 {[%clk
00:43:57]} {[%emt 00:03:40]} Qf6 {[%clk 00:14:05]} {[%emt 00:01:55]} 25. Qc6
{[%clk 00:41:17]} {[%emt 00:03:10]} Rh6 {[%clk 00:11:54]} {[%emt 00:02:41]} 26.
Bc7 {[%clk 00:37:39]} {[%emt 00:04:08]} e5 {[%clk 00:06:26]} {[%emt 00:05:59]}
27. Rd6 {[%clk 00:37:32]} {[%emt 00:00:36]} Qg5 {[%clk 00:03:16]} {[%emt
00:03:40]} 28. Bxd8 {[%clk 00:33:52]} {[%emt 00:04:10]} Qxd8 {[%clk 00:03:12]}
{[%emt 00:00:34]} 29. Rxh6 {[%clk 00:33:42]} {[%emt 00:00:40]} gxh6 {[%clk
00:03:38]} {[%emt 00:00:05]} 30. Qg6+ {[%clk 00:31:25]} {[%emt 00:02:47]} Ke7
{[%clk 00:03:10]} {[%emt 00:00:58]} 31. Rd1 {[%clk 00:31:34]} {[%emt 00:00:20]}
Qe8 {[%clk 00:02:23]} {[%emt 00:01:18]} 32. Qxh6 {[%clk 00:30:53]} {[%emt
00:01:11]} 1-0

[Event "Superettan 2017/2018"]
[Site "Vegagatan 20, Gothenburg, Sweden"]
[Date "2018.02.03"]
[Round "2.12"]
[White "Eksmyr, Johan"]
[Black "Mohammadi, Amir"]
[Result "1-0"]
[TimeControl "90 minutes for 40 moves + 30 minutes for the rest of the game + 30 seconds per move from move one."]
[WhiteFideId "1704346"]
[BlackFideId "1705890"]
[WhiteElo "2181"]
[BlackElo "2316"]

1. d4 {[%clk 01:29:55]} {[%emt 00:01:03]} f5 {[%clk 01:30:39]} {[%emt
00:00:22]} 2. Nc3 {[%clk 01:29:15]} {[%emt 00:01:10]} d5 {[%clk 01:31:01]}
{[%emt 00:00:09]} 3. Nf3 {[%clk 01:27:05]} {[%emt 00:16:35]} e6 {[%clk
01:30:26]} 4. Bg5 {[%clk 01:26:24]} Nf6 5. h4 Be7 6. e3 Ne4 7. Nxe4 fxe4 8. Ne5
O-O 9. f4 Nc6 10. Nxc6 bxc6 11. c3 Rb8 {[%clk 01:30:42]} 12. b4 {[%clk
01:24:38]} Qe8 {[%clk 01:27:09]} {[%emt 00:15:10]} 13. Bxe7 {[%clk 01:10:55]}
Qxe7 {[%clk 01:27:37]} {[%emt 00:00:58]} 14. Qa4 {[%clk 01:10:37]} Bd7 {[%clk
01:24:40]} {[%emt 00:18:53]} 15. Qxa7 {[%clk 01:06:11]} Ra8 {[%clk 01:24:33]}
16. Qxc7 {[%clk 01:05:30]} Ra3 {[%clk 01:24:59]} 17. Kd2 {[%clk 00:42:43]} Rfa8
{[%clk 01:24:26]} {[%emt 00:16:30]} 18. Kc2 {[%clk 03:59:05]} R3a7 {[%clk
01:06:37]} {[%emt 00:21:00]} 19. Qb6 {[%clk 00:32:17]} Rxa2+ {[%clk 01:06:40]}
{[%emt 00:09:12]} 20. Rxa2 {[%clk 00:32:26]} Rxa2+ {[%clk 01:07:07]} {[%emt
00:00:24]} 21. Kb3 {[%clk 00:26:09]} Ra1 {[%clk 01:05:45]} {[%emt 00:14:40]} 22.
Qb8+ {[%clk 00:16:36]} Be8 {[%clk 00:50:34]} {[%emt 00:19:43]} 23. h5 {[%clk
00:14:01]} Qd7 {[%clk 00:40:20]} {[%emt 00:13:48]} 24. h6 {[%clk 00:11:59]} g6
{[%clk 00:38:59]} {[%emt 00:04:23]} 25. g4 {[%clk 00:10:09]} Rb1+ {[%clk
00:34:44]} {[%emt 00:07:05]} 26. Kc2 {[%clk 00:09:09]} Re1 {[%clk 00:34:56]}
{[%emt 00:01:48]} 27. g5 {[%clk 00:07:26]} Kf8 {[%clk 00:29:37]} {[%emt
00:08:03]} 28. Qe5 {[%clk 00:03:46]} Qa7 {[%clk 00:18:15]} {[%emt 00:16:02]} 29.
Qf6+ {[%clk 00:02:06]} Bf7 {[%clk 00:13:55]} {[%emt 00:06:59]} 30. Qd8+ {[%clk
00:02:25]} Be8 {[%clk 00:14:21]} {[%emt 00:00:16]} 31. Qf6+ {[%clk 00:02:29]}
Bf7 {[%clk 00:13:31]} {[%emt 00:01:46]} 32. Qd8+ {[%clk 00:02:55]} Be8 {[%clk
00:13:56]} {[%emt 00:00:08]} 33. Qa5 {[%clk 00:02:37]} Qxa5 {[%clk 00:10:24]}
{[%emt 00:04:51]} 34. bxa5 {[%clk 00:03:05]} c5 {[%clk 00:10:44]} {[%emt
00:00:11]} 35. dxc5 {[%clk 00:02:10]} Bc6 {[%clk 00:06:08]} {[%emt 00:06:32]}
36. a6 {[%clk 00:02:34]} Rxe3 {[%clk 00:04:57]} {[%emt 00:01:46]} 37. a7 {[%clk
00:02:53]} d4 {[%clk 00:05:02]} {[%emt 00:00:37]} 38. cxd4 {[%clk 00:03:00]}
Ra3 {[%clk 00:05:31]} {[%emt 00:00:24]} 39. Bc4 {[%clk 00:02:53]} e3 {[%clk
00:04:16]} {[%emt 00:02:21]} 40. Re1 {[%clk 00:02:10]} Kf7 {[%clk 00:00:40]}
{[%emt 00:05:20]} 41. Kb2 {[%clk 00:00:35]} Rxa7 {[%clk 00:00:38]} {[%emt
00:02:37]} 42. Rxe3 {[%clk 00:00:56]} 1-0

[Event "Superettan 2017/2018"]
[Site "Vegagatan 20, Gothenburg, Sweden"]
[Date "2018.02.03"]
[Round "2.13"]
[White "Svenn, Matti"]
[Black "Hansson, Fredrik"]
[Result "1/2-1/2"]
[TimeControl "90 minutes for 40 moves + 30 minutes for the rest of the game + 30 seconds per move from move one."]
[WhiteFideId "1705091"]
[BlackFideId "1713256"]
[WhiteElo "2166"]
[BlackElo "2177"]

1. d4 {[%clk 01:30:56]} {[%emt 00:00:03]} d5 {[%clk 01:30:51]} {[%emt
00:00:08]} 2. Nf3 {[%clk 01:31:13]} {[%emt 00:00:14]} Nf6 {[%clk 01:31:14]}
{[%emt 00:00:07]} 3. Bf4 {[%clk 01:31:30]} {[%emt 00:00:14]} c5 {[%clk
01:31:30]} {[%emt 00:00:13]} 4. e3 {[%clk 01:31:55]} {[%emt 00:00:05]} Nc6
{[%clk 01:31:53]} {[%emt 00:00:06]} 5. Nc3 {[%clk 01:30:37]} {[%emt 00:01:49]}
Bf5 {[%clk 01:12:13]} {[%emt 00:20:10]} 6. dxc5 {[%clk 01:00:42]} {[%emt
00:31:15]} Rc8 {[%clk 01:11:55]} 7. Bd3 {[%clk 00:57:17]} {[%emt 00:03:51]} Bg4
{[%clk 01:07:54]} {[%emt 00:04:32]} 8. Be2 {[%clk 00:54:45]} {[%emt 00:03:03]}
e6 {[%clk 01:07:38]} {[%emt 00:00:44]} 9. h3 {[%clk 00:54:33]} {[%emt
00:00:43]} Bh5 {[%clk 01:07:28]} {[%emt 00:00:40]} 10. O-O {[%clk 00:44:59]}
{[%emt 00:10:04]} Bxc5 {[%clk 01:07:43]} {[%emt 00:00:14]} 11. Ne5 {[%clk
00:38:09]} {[%emt 00:07:20]} Bxe2 {[%clk 01:06:35]} {[%emt 00:01:37]} 12. Qxe2
{[%clk 00:38:34]} {[%emt 00:00:06]} O-O {[%clk 01:06:43]} {[%emt 00:00:21]} 13.
a3 {[%clk 00:38:32]} {[%emt 00:00:33]} Nxe5 {[%clk 00:50:15]} {[%emt 00:16:57]}
14. Bxe5 {[%clk 00:38:58]} {[%emt 00:00:05]} Nd7 {[%clk 00:50:37]} {[%emt
00:00:07]} 15. Bg3 {[%clk 00:30:59]} {[%emt 00:08:30]} Nb6 {[%clk 00:50:26]}
{[%emt 00:00:40]} 16. Nb5 {[%clk 00:19:36]} {[%emt 00:11:54]} a6 {[%clk
00:43:09]} {[%emt 00:07:47]} 17. Nd4 {[%clk 00:20:02]} {[%emt 00:00:04]} Nc4
{[%clk 00:43:17]} {[%emt 00:00:20]} 18. c3 {[%clk 00:20:21]} {[%emt 00:00:12]}
Qb6 {[%clk 00:39:22]} {[%emt 00:04:25]} 19. Rab1 {[%clk 00:19:38]} {[%emt
00:01:14]} Rfd8 {[%clk 00:29:06]} {[%emt 00:10:46]} 20. Rfd1 {[%clk 00:18:26]}
{[%emt 00:01:42]} Bd6 {[%clk 00:28:17]} {[%emt 00:01:18]} 21. Bxd6 {[%clk
00:15:05]} {[%emt 00:03:52]} Nxd6 {[%clk 00:28:39]} {[%emt 00:00:06]} 22. Qd3
{[%clk 00:14:31]} {[%emt 00:01:06]} g6 {[%clk 00:27:11]} {[%emt 00:01:57]} 23.
Nf3 {[%clk 00:14:28]} {[%emt 00:00:34]} Qc5 {[%clk 00:24:58]} {[%emt 00:02:43]}
24. Ne5 {[%clk 00:11:29]} {[%emt 00:03:29]} b5 {[%clk 00:24:07]} {[%emt
00:01:19]} 25. Qe2 {[%clk 00:11:48]} {[%emt 00:00:13]} Nc4 {[%clk 00:22:06]}
{[%emt 00:02:29]} 26. Ng4 {[%clk 00:11:33]} {[%emt 00:00:47]} h5 {[%clk
00:21:12]} {[%emt 00:01:23]} 27. Nh2 {[%clk 00:11:47]} {[%emt 00:00:16]} a5
{[%clk 00:19:40]} {[%emt 00:02:01]} 28. Nf3 {[%clk 00:12:06]} {[%emt 00:00:12]}
b4 {[%clk 00:19:04]} {[%emt 00:01:06]} 29. axb4 {[%clk 00:12:30]} {[%emt
00:00:07]} axb4 {[%clk 00:19:26]} {[%emt 00:00:08]} 30. cxb4 {[%clk 00:10:46]}
{[%emt 00:02:14]} Qxb4 {[%clk 00:19:37]} {[%emt 00:00:18]} 31. e4 {[%clk
00:06:29]} {[%emt 00:04:48]} dxe4 {[%clk 00:11:12]} {[%emt 00:08:55]} 32. Rxd8+
{[%clk 00:06:48]} {[%emt 00:00:11]} Rxd8 {[%clk 00:11:35]} {[%emt 00:00:06]} 33.
Qxe4 {[%clk 00:07:16]} {[%emt 00:00:03]} Rb8 {[%clk 00:11:27]} {[%emt
00:00:37]} 34. Rc1 {[%clk 00:05:14]} {[%emt 00:02:32]} Nd6 {[%clk 00:11:18]}
{[%emt 00:00:39]} 35. Qe3 {[%clk 00:02:08]} {[%emt 00:03:36]} Qxb2 {[%clk
00:09:44]} {[%emt 00:02:03]} 36. Rd1 {[%clk 00:02:08]} {[%emt 00:00:31]} Nf5
{[%clk 00:09:01]} {[%emt 00:01:13]} 37. Qg5 {[%clk 00:02:15]} {[%emt 00:00:24]}
Qb7 {[%clk 00:01:53]} {[%emt 00:07:36]} 38. Ne5 {[%clk 00:01:50]} {[%emt
00:00:56]} Qe7 {[%clk 00:01:58]} {[%emt 00:00:25]} 39. Qf4 {[%clk 00:01:35]}
{[%emt 00:00:46]} Rd8 {[%clk 00:01:34]} {[%emt 00:00:52]} 40. Rc1 {[%clk
00:01:31]} {[%emt 00:00:35]} Rd4 {[%clk 00:01:25]} {[%emt 00:00:40]} 41. Qf3
{[%clk 00:01:13]} {[%emt 00:00:48]} Qd6 {[%clk 00:00:34]} {[%emt 00:01:21]} 42.
Re1 {[%clk 00:18:55]} {[%emt 00:12:48]} Qd5 {[%clk 00:27:44]} {[%emt 00:03:20]}
43. Qxd5 {[%clk 00:17:55]} {[%emt 00:01:30]} Rxd5 {[%clk 00:28:06]} {[%emt
00:00:06]} 44. g3 {[%clk 00:15:52]} {[%emt 00:02:34]} Kg7 {[%clk 00:26:52]}
{[%emt 00:01:44]} 45. h4 {[%clk 00:16:06]} {[%emt 00:00:16]} f6 {[%clk
00:24:51]} {[%emt 00:02:31]} 46. Nf3 {[%clk 00:16:14]} {[%emt 00:00:22]} e5
{[%clk 00:25:03]} {[%emt 00:00:16]} 47. Ra1 {[%clk 00:16:24]} {[%emt 00:00:21]}
Rd7 {[%clk 00:24:54]} {[%emt 00:00:39]} 48. Ra4 {[%clk 00:15:11]} {[%emt
00:01:43]} Nh6 {[%clk 00:22:10]} {[%emt 00:03:15]} 49. Kf1 {[%clk 00:13:36]}
{[%emt 00:02:05]} Ng4 {[%clk 00:22:16]} {[%emt 00:00:23]} 50. Ke2 {[%clk
00:13:40]} {[%emt 00:00:26]} Rb7 {[%clk 00:22:24]} {[%emt 00:00:21]} 51. Ra2
{[%clk 00:14:06]} {[%emt 00:00:05]} Kh6 {[%clk 00:19:55]} {[%emt 00:03:00]} 52.
Rc2 {[%clk 00:14:20]} {[%emt 00:00:16]} Rb6 {[%clk 00:19:34]} {[%emt 00:00:51]}
53. Ra2 {[%clk 00:14:09]} {[%emt 00:00:41]} e4 {[%clk 00:11:01]} {[%emt
00:09:03]} 54. Nd2 {[%clk 00:14:18]} {[%emt 00:00:21]} Re6 {[%clk 00:11:06]}
{[%emt 00:00:25]} 55. Nf1 {[%clk 00:13:15]} {[%emt 00:01:33]} g5 {[%clk
00:10:54]} {[%emt 00:00:42]} 56. Ne3 {[%clk 00:12:19]} {[%emt 00:01:26]} Ne5
{[%clk 00:09:16]} {[%emt 00:02:08]} 57. Ra4 {[%clk 00:09:56]} {[%emt 00:02:53]}
Nf3 {[%clk 00:08:26]} {[%emt 00:01:20]} 58. Ng2 {[%clk 00:06:10]} {[%emt
00:04:17]} Kg6 {[%clk 00:07:23]} {[%emt 00:01:33]} 59. Rb4 {[%clk 00:03:22]}
{[%emt 00:03:18]} Re5 {[%clk 00:06:53]} {[%emt 00:01:00]} 60. hxg5 {[%clk
00:02:58]} {[%emt 00:00:56]} fxg5 {[%clk 00:06:58]} {[%emt 00:00:23]} 61. Rb6+
{[%clk 00:02:56]} {[%emt 00:00:32]} Kg7 {[%clk 00:06:56]} {[%emt 00:00:31]} 62.
Ke3 {[%clk 00:02:43]} {[%emt 00:00:45]} Nh2 {[%clk 00:04:01]} {[%emt 00:03:25]}
63. Ke2 {[%clk 00:01:17]} {[%emt 00:01:56]} Ng4 {[%clk 00:02:28]} {[%emt
00:02:02]} 64. Ne3 {[%clk 00:01:35]} {[%emt 00:00:12]} Nf6 {[%clk 00:02:37]}
{[%emt 00:00:20]} 65. Ra6 {[%clk 00:00:47]} {[%emt 00:01:19]} Rb5 {[%clk
00:01:22]} {[%emt 00:01:45]} 66. Ra2 {[%clk 00:01:16]} {[%emt 00:00:02]} Kg6
{[%clk 00:01:16]} {[%emt 00:00:35]} 67. Kf1 {[%clk 00:01:44]} {[%emt 00:00:02]}
h4 {[%clk 00:01:06]} {[%emt 00:00:39]} 68. gxh4 {[%clk 00:02:11]} {[%emt
00:00:04]} gxh4 {[%clk 00:01:31]} {[%emt 00:00:05]} 69. Kg2 {[%clk 00:02:38]}
{[%emt 00:00:03]} Nd5 {[%clk 00:00:49]} {[%emt 00:01:11]} 70. Nxd5 {[%clk
00:02:31]} {[%emt 00:00:37]} Rxd5 {[%clk 00:01:13]} {[%emt 00:00:06]} 71. Ra8
{[%clk 00:00:49]} {[%emt 00:02:12]} Kf5 {[%clk 00:00:34]} {[%emt 00:01:09]} 72.
Rg8 {[%clk 00:00:50]} {[%emt 00:00:30]} Kf4 {[%clk 00:00:34]} {[%emt 00:00:31]}
73. Rh8 {[%clk 00:00:52]} {[%emt 00:00:28]} Kg4 {[%clk 00:00:53]} {[%emt
00:00:11]} 74. Rh7 {[%clk 00:00:59]} {[%emt 00:00:23]} Rg5 {[%clk 00:00:49]}
{[%emt 00:00:34]} 75. Rf7 {[%clk 00:01:06]} {[%emt 00:00:24]} Rg8 {[%clk
00:00:49]} {[%emt 00:00:28]} 76. Kh2 {[%clk 00:01:14]} {[%emt 00:00:23]} Rb8
{[%clk 00:00:34]} {[%emt 00:00:44]} 77. Rg7+ {[%clk 00:00:35]} {[%emt
00:01:10]} Kf3 {[%clk 00:01:02]} {[%emt 00:00:02]} 78. Rf7+ {[%clk 00:01:04]}
{[%emt 00:00:01]} Ke2 {[%clk 00:00:40]} {[%emt 00:00:50]} 79. Rf4 {[%clk
00:00:57]} {[%emt 00:00:38]} Re8 {[%clk 00:00:36]} {[%emt 00:00:34]} 80. Kh3
{[%clk 00:01:10]} {[%emt 00:00:18]} Kd3 {[%clk 00:00:34]} {[%emt 00:00:32]} 81.
Kxh4 {[%clk 00:01:24]} {[%emt 00:00:16]} Rg8 {[%clk 00:00:56]} {[%emt
00:00:08]} 82. Kh3 {[%clk 00:01:32]} {[%emt 00:00:22]} e3 {[%clk 00:01:02]}
{[%emt 00:00:24]} 1/2-1/2

[Event "Superettan 2017/2018"]
[Site "Vegagatan 20, Gothenburg, Sweden"]
[Date "2018.02.03"]
[Round "2.14"]
[White "Virolainen, Victor"]
[Black "Madebrink, Lars"]
[Result "0-1"]
[TimeControl "90 minutes for 40 moves + 30 minutes for the rest of the game + 30 seconds per move from move one."]
[WhiteFideId "1710672"]
[BlackFideId "1701347"]
[WhiteElo "2173"]
[BlackElo "2205"]

1. e4 {[%clk 01:30:57]} {[%emt 00:00:01]} c5 {[%clk 01:30:52]} {[%emt
00:00:09]} 2. Nf3 {[%clk 01:31:19]} {[%emt 00:00:08]} d6 {[%clk 01:31:17]}
{[%emt 00:00:05]} 3. d4 {[%clk 01:31:37]} {[%emt 00:00:12]} cxd4 {[%clk
01:31:42]} {[%emt 00:00:05]} 4. Nxd4 {[%clk 01:31:59]} {[%emt 00:00:08]} Nf6
{[%clk 01:32:06]} {[%emt 00:00:05]} 5. Nc3 {[%clk 01:32:20]} {[%emt 00:00:08]}
a6 {[%clk 01:32:25]} {[%emt 00:00:12]} 6. Be3 {[%clk 01:31:48]} {[%emt
00:01:02]} e6 {[%clk 01:32:06]} {[%emt 00:00:48]} 7. f3 {[%clk 01:29:11]}
{[%emt 00:16:19]} Nc6 {[%clk 01:31:11]} 8. Qd2 {[%clk 01:27:57]} Bd7 {[%clk
01:30:41]} 9. g4 {[%clk 01:22:34]} Nxd4 {[%clk 01:25:52]} {[%emt 00:02:11]} 10.
Bxd4 {[%clk 01:22:57]} {[%emt 00:00:06]} Bc6 {[%clk 01:26:09]} {[%emt
00:00:12]} 11. g5 {[%clk 01:17:58]} {[%emt 00:05:30]} Nd7 {[%clk 01:26:26]}
{[%emt 00:00:12]} 12. h4 {[%clk 01:18:04]} {[%emt 00:00:25]} b5 {[%clk
01:22:44]} {[%emt 00:04:12]} 13. a3 {[%clk 01:09:55]} {[%emt 00:22:14]} Ne5
{[%clk 01:18:12]} 14. Be2 {[%clk 01:10:01]} Qc7 {[%clk 01:12:38]} 15. O-O-O
{[%clk 00:48:26]} {[%emt 00:20:00]} Qb7 {[%clk 01:10:53]} {[%emt 00:02:15]} 16.
h5 {[%clk 00:34:06]} {[%emt 00:14:50]} a5 {[%clk 01:07:10]} {[%emt 00:04:13]}
17. Rhf1 {[%clk 00:18:52]} {[%emt 00:15:44]} b4 {[%clk 01:05:59]} {[%emt
00:01:42]} 18. Nb1 {[%clk 00:19:12]} {[%emt 00:00:09]} Nd7 {[%clk 01:04:29]}
{[%emt 00:02:00]} 19. Bc4 {[%clk 00:10:51]} {[%emt 00:08:51]} Nb6 {[%clk
00:59:58]} {[%emt 00:05:00]} 20. Bxb6 {[%clk 00:09:33]} {[%emt 00:01:49]} Qxb6
{[%clk 01:00:21]} {[%emt 00:00:07]} 21. axb4 {[%clk 00:09:51]} {[%emt
00:00:13]} axb4 {[%clk 01:00:19]} {[%emt 00:00:31]} 22. g6 {[%clk 00:10:15]}
{[%emt 00:00:06]} O-O-O {[%clk 00:54:13]} {[%emt 00:06:36]} 23. Qf4 {[%clk
00:06:52]} {[%emt 00:03:53]} d5 {[%clk 00:53:53]} {[%emt 00:00:49]} 24. exd5
{[%clk 00:07:17]} {[%emt 00:00:07]} exd5 {[%clk 00:53:53]} {[%emt 00:00:30]} 25.
Qf5+ {[%clk 00:07:21]} {[%emt 00:00:25]} Kb8 {[%clk 00:51:50]} {[%emt
00:02:33]} 26. Bb3 {[%clk 00:06:59]} {[%emt 00:00:52]} fxg6 {[%clk 00:50:43]}
{[%emt 00:01:37]} 27. hxg6 {[%clk 00:06:29]} {[%emt 00:01:00]} hxg6 {[%clk
00:50:46]} {[%emt 00:00:26]} 28. Qxg6 {[%clk 00:06:34]} {[%emt 00:00:25]} Bd6
{[%clk 00:45:58]} {[%emt 00:05:18]} 29. f4 {[%clk 00:06:40]} {[%emt 00:00:25]}
Bb5 {[%clk 00:45:03]} {[%emt 00:01:25]} 30. Rg1 {[%clk 00:02:45]} {[%emt
00:04:25]} Bxf4+ {[%clk 00:41:24]} {[%emt 00:04:09]} 31. Nd2 {[%clk 00:03:11]}
{[%emt 00:00:05]} Qxg6 {[%clk 00:36:23]} {[%emt 00:05:30]} 32. Rxg6 {[%clk
00:03:36]} {[%emt 00:00:05]} Be2 {[%clk 00:34:21]} {[%emt 00:02:32]} 33. Re1
{[%clk 00:02:39]} {[%emt 00:01:27]} Rh2 {[%clk 00:33:54]} {[%emt 00:00:57]} 34.
Rb6+ {[%clk 00:03:00]} {[%emt 00:00:10]} Kc7 {[%clk 00:31:36]} {[%emt
00:02:48]} 35. Rxb4 {[%clk 00:03:26]} {[%emt 00:00:05]} g5 {[%clk 00:30:08]}
{[%emt 00:01:57]} 36. c3 {[%clk 00:02:36]} {[%emt 00:01:20]} Bc4 {[%clk
00:25:41]} {[%emt 00:04:57]} 37. Rd1 {[%clk 00:02:52]} {[%emt 00:00:15]} Bxb3
{[%clk 00:23:56]} {[%emt 00:02:15]} 38. Rxb3 {[%clk 00:03:16]} {[%emt
00:00:06]} Re8 {[%clk 00:19:52]} {[%emt 00:04:31]} 39. Rb4 {[%clk 00:03:39]}
{[%emt 00:00:09]} Re4 {[%clk 00:19:46]} {[%emt 00:00:36]} 40. Kc2 {[%clk
00:00:59]} {[%emt 00:03:10]} Rxb4 {[%clk 00:13:50]} {[%emt 00:06:26]} 41. cxb4
{[%clk 00:01:25]} {[%emt 00:00:05]} d4 {[%clk 00:14:13]} {[%emt 00:00:06]} 42.
Kd3 {[%clk 00:22:51]} {[%emt 00:09:03]} Rxd2+ {[%clk 00:44:19]} {[%emt
00:00:25]} 0-1